bitfinex/quotes_SOLUSD_20250129
["timestamp","ask_amount","ask_price","bid_price","bid_amount"]
[1738111020813,12.67377533,228.46,228.4,20.0]
[1738111021021,12.67377533,228.46,228.38,0.18849]
[1738111021934,12.67377533,228.44,228.38,0.063]
[1738111022216,12.67377533,228.46,228.38,0.063]
[1738111023132,12.67377533,228.46,228.38,0.18849]
[1738111023831,12.67377533,228.46,228.38,23.965374]
[1738111024019,12.70377533,228.48,228.4,0.12549]
[1738111024634,0.03,228.48,228.44,0.12549]
[1738111026210,0.03,228.48,228.44,23.902374]
[1738111026909,0.03,228.48,228.44,28.279774]
[1738111027813,0.03,228.48,228.44,23.902374]
[1738111028402,0.03,228.48,228.46,0.12549]
[1738111033409,0.03,228.48,228.47,12.79926533]
[1738111033632,0.03,228.48,228.47,19.13566533]
[1738111034138,0.03,228.48,228.47,0.12549]
[1738111036623,0.03,228.48,228.45,12.67377533]
[1738111036925,0.03,228.48,228.43,1.6561]
[1738111037533,0.03,228.48,228.44,23.902374]
[1738111037733,0.03,228.48,228.47,0.12549]
[1738111039512,0.03,228.59,228.58,20.0]
[1738111039716,0.03,228.59,228.58,20.12549]
[1738111041242,0.03,228.59,228.58,0.12549]
[1738111041431,12.70377533,228.59,228.51,15.73377533]
[1738111041732,12.67377533,228.57,228.51,3.06]
[1738111042845,12.70377533,228.59,228.53,0.12549]
[1738111043434,0.03,228.59,228.53,0.12549]
[1738111043740,0.03,228.59,228.57,0.12549]
[1738111044822,0.03,228.59,228.55,12.67377533]
[1738111045347,0.03,228.59,228.58,0.12549]
[1738111046427,0.03,228.59,228.53,12.67377533]
[1738111047540,12.70377533,228.59,228.51,12.67377533]
[1738111047739,12.67377533,228.57,228.49,12.67377533]
[1738111048052,12.67377533,228.55,228.47,19.11307533]
[1738111048351,12.67377533,228.55,228.47,12.67377533]
[1738111049046,12.67377533,228.55,228.45,12.67377533]
[1738111049244,12.67377533,228.55,228.48,20.0]
[1738111049424,12.67377533,228.55,228.49,0.12549]
[1738111049842,12.67377533,228.55,228.5,20.0]
[1738111050644,12.67377533,228.57,228.51,0.12549]
[1738111051344,12.67377533,228.55,228.47,12.67377533]
[1738111052150,12.67377533,228.53,228.45,12.67377533]
[1738111052444,12.67377533,228.55,228.46,0.12549]
[1738111055351,12.67377533,228.55,228.48,20.0]
[1738111056553,12.70377533,228.55,228.48,20.0]
[1738111056725,12.67377533,228.51,228.43,12.73677533]
[1738111059856,1.6191,228.54,228.45,12.67377533]
[1738111060058,1.6191,228.54,228.5,12.67377533]
[1738111060224,1.6191,228.54,228.48,12.67377533]
[1738111060648,14.29287533,228.54,228.46,12.67377533]
[1738111061134,12.67377533,228.52,228.44,12.67377533]
[1738111062031,14.29287533,228.54,228.46,12.67377533]
[1738111062952,12.67377533,228.52,228.45,4.50269]
[1738111064163,12.67377533,228.52,228.44,12.67377533]
[1738111064956,14.29287533,228.54,228.45,0.12549]
[1738111066263,14.29287533,228.54,228.45,4.50279]
[1738111066561,14.29287533,228.54,228.46,12.67377533]
[1738111067761,0.03,228.55,228.49,0.12549]
[1738111067960,0.03,228.55,228.53,0.12549]
[1738111068161,0.03,228.55,228.54,56.57614933]
[1738111068961,0.03,228.55,228.54,60.95174933]
[1738111069760,0.03,228.55,228.54,32.79926533]
[1738111069965,0.03,228.55,228.52,12.67377533]
[1738111070467,0.03,228.55,228.5,12.67377533]
[1738111071033,0.03,228.55,228.49,3.06]
[1738111071237,0.03,228.55,228.5,0.12549]
[1738111073055,0.03,228.55,228.5,17.17556533]
[1738111073566,0.03,228.55,228.52,0.12549]
[1738111074068,0.03,228.55,228.5,12.67377533]
[1738111074570,0.03,228.55,228.48,12.67377533]
[1738111074752,12.70377533,228.55,228.46,12.73677533]
[1738111074944,12.70377533,228.55,228.47,0.12549]
[1738111077271,0.03,228.55,228.49,0.12549]
[1738111080661,0.03,228.55,228.49,4.50199]
[1738111081054,0.03,228.55,228.52,0.12549]
[1738111081259,0.03,228.55,228.54,0.12549]
[1738111082171,0.03,228.55,228.54,20.12549]
[1738111082381,0.03,228.55,228.54,60.95174933]
[1738111082680,0.03,228.59,228.58,20.0]
[1738111082868,0.03,228.59,228.58,56.45065933]
[1738111083483,0.03,228.59,228.58,56.57614933]
[1738111083665,0.03,228.59,228.58,60.95094933]
[1738111084882,0.03,228.6,228.59,23.902374]
[1738111086391,0.0001,228.6,228.59,23.902374]
[1738111086889,0.0001,228.6,228.59,27.13302193]
[1738111089566,0.0001,228.62,228.61,43.902374]
[1738111089783,0.0001,228.62,228.61,56.57614933]
[1738111090093,0.0001,228.62,228.61,64.17934933]
[1738111091189,0.0001,228.62,228.61,67.40999726]
[1738111091690,0.03,228.69,228.61,203.80999726]
[1738111091885,0.03,228.69,228.68,12.67377533]
[1738111092289,0.03,228.69,228.68,36.57614933]
[1738111093293,0.03,228.69,228.68,40.94904933]
[1738111095181,0.03,228.69,228.68,42.69938633]
[1738111097605,0.0001,228.69,228.68,58.43316166]
[1738111097776,0.03,228.71,228.7,0.12549]
[1738111097974,0.0001,228.71,228.7,36.57614933]
[1738111098778,12.67377533,228.87,228.74,20.12549]
[1738111098987,12.67377533,228.9,228.77,36.57614933]
[1738111100280,12.67377533,228.88,228.77,40.94734933]
[1738111100811,12.67377533,228.86,228.77,12.79926533]
[1738111103708,12.67377533,228.82,228.73,12.67377533]
[1738111104207,12.67377533,228.82,228.77,0.12549]
[1738111104382,12.67377533,228.82,228.75,0.12549]
[1738111105000,12.67377533,228.82,228.77,0.12549]
[1738111105211,12.67377533,228.85,228.77,20.12549]
[1738111105710,12.67377533,228.83,228.77,20.12549]
[1738111107209,12.67377533,228.85,228.77,20.12549]
[1738111107609,12.67377533,228.83,228.77,20.0]
[1738111108721,12.67377533,228.83,228.77,20.12549]
[1738111110509,12.67377533,228.83,228.74,12.67377533]
[1738111110716,12.67377533,228.79,228.7,12.67377533]
[1738111111214,14.17757533,228.79,228.73,20.0]
[1738111111595,1.5038,228.79,228.73,20.0]
[1738111114930,0.23909851,228.81,228.74,12.79926533]
[1738111118124,0.23909851,228.81,228.74,0.12549]
[1738111119230,0.23909851,228.81,228.75,20.0]
[1738111119811,12.91287384,228.81,228.75,20.0]
[1738111120010,12.91287384,228.81,228.72,12.67377533]
[1738111120824,12.67377533,228.79,228.7,12.67377533]
[1738111121227,12.67377533,228.77,228.71,20.0]
[1738111122725,14.18527533,228.77,228.69,0.12549]
[1738111125509,1.5115,228.77,228.72,0.12549]
[1738111125830,19.30247384,228.81,228.72,12.79926533]
[1738111126138,0.23909851,228.81,228.77,20.12549]
[1738111126633,0.23909851,228.81,228.77,0.12549]
[1738111127231,0.23909851,228.81,228.77,23.902374]
[1738111127622,0.23909851,228.81,228.77,28.273574]
[1738111128615,0.23909851,228.81,228.77,31.49591399]
[1738111129215,0.23909851,228.81,228.8,43.902374]
[1738111129416,0.23909851,228.81,228.8,56.57614933]
[1738111130434,0.23909851,228.81,228.8,60.94674933]
[1738111130737,0.23909851,228.81,228.8,64.16908932]
[1738111134318,0.23909851,228.81,228.8,36.02160532]
[1738111134638,0.23909851,228.81,228.8,59.79848932]
[1738111136639,0.23909851,228.81,228.8,64.16908932]
[1738111137346,0.26909851,228.81,228.8,64.16908932]
[1738111138545,0.26909851,228.81,228.8,59.5704597]
[1738111138919,0.26909851,228.81,228.8,31.2974857]
[1738111139337,0.26909851,228.81,228.8,31.4229757]
[1738111140042,0.26909851,228.81,228.8,23.34782999]
[1738111140417,0.26909851,228.81,228.8,20.12549]
[1738111141240,0.26909851,228.81,228.78,8.07514571]
[1738111141445,0.26909851,228.81,228.76,8.07514571]
[1738111141741,0.26909851,228.81,228.77,3.35204952]
[1738111142444,8.34424422,228.81,228.77,3.22655952]
[1738111142955,8.07514571,228.79,228.73,3.22655952]
[1738111144261,8.07514571,228.79,228.71,3.22655952]
[1738111144946,0.26909851,228.81,228.74,8.20063571]
[1738111145144,0.26909851,228.81,228.76,8.07514571]
[1738111146550,0.26909851,228.81,228.76,12.74925379]
[1738111147551,0.26909851,228.81,228.74,12.62376379]
[1738111148757,0.26909851,228.81,228.75,0.12549]
[1738111149851,0.26909851,228.81,228.75,4.49699]
[1738111151063,0.26909851,228.81,228.76,12.62376379]
[1738111152347,0.26909851,228.81,228.76,16.99506379]
[1738111153259,0.26909851,228.81,228.8,20.12549]
[1738111153560,0.26909851,228.81,228.8,32.74925379]
[1738111154460,0.26909851,228.81,228.8,60.89673779]
[1738111155445,0.26909851,228.81,228.8,64.12025336]
[1738111158865,0.26909851,228.81,228.8,40.34336936]
[1738111159867,0.26909851,228.81,228.8,3.22351557]
[1738111161364,0.26909851,228.81,228.78,20.0]
[1738111162459,0.26909851,228.81,228.77,12.62376379]
[1738111163879,0.26909851,228.81,228.75,12.74925379]
[1738111165770,0.26909851,228.81,228.76,3.22594029]
[1738111168472,0.26909851,228.81,228.79,32.62376379]
[1738111168678,0.26909851,228.81,228.8,8.07643991]
[1738111169365,0.26909851,228.81,228.8,11.3023802]
[1738111169679,0.26909851,228.81,228.8,3.22594029]
[1738111170752,0.26909851,228.81,228.78,3.22594029]
[1738111173275,0.26909851,228.81,228.78,3.28894029]
[1738111175676,0.26909851,228.81,228.79,0.12549]
[1738111175852,0.26909851,228.81,228.8,20.0]
[1738111177070,0.26909851,228.81,228.8,23.22594029]
[1738111177374,0.26909851,228.81,228.8,3.22594029]
[1738111178375,0.26909851,228.81,228.79,3.22594029]
[1738111179376,0.26909851,228.81,228.79,7.59674029]
[1738111180987,0.26909851,228.81,228.8,3.22594029]
[1738111184792,0.26909851,228.81,228.8,23.35143029]
[1738111184980,0.26909851,228.81,228.8,64.12324264]
[1738111188295,0.26909851,228.81,228.8,76.74757099]
[1738111188781,0.26909851,228.81,228.8,64.12324264]
[1738111193899,0.26909851,228.81,228.8,40.34635864]
[1738111194587,0.26909851,228.81,228.8,35.79707681]
[1738111195188,0.26909851,228.81,228.8,59.57396081]
[1738111195489,0.26909851,228.81,228.8,91.87414689]
[1738111195690,0.26909851,228.81,228.8,59.57396081]
[1738111197599,0.26909851,228.81,228.8,91.87414689]
[1738111202485,0.26909851,228.81,228.8,59.57396081]
[1738111203084,0.26909851,228.81,228.8,91.87414689]
[1738111204608,0.26909851,228.81,228.8,59.57396081]
[1738111212512,0.26909851,228.81,228.8,31.42647681]
[1738111213310,0.26909851,228.81,228.8,35.79707681]
[1738111213686,0.26909851,228.81,228.8,3.35143029]
[1738111214097,0.26909851,228.81,228.8,23.35143029]
[1738111214406,0.26909851,228.81,228.8,31.42647681]
[1738111216017,0.26909851,228.81,228.8,59.57396081]
[1738111216311,0.03,228.92,228.91,0.12549]
[1738111217399,0.03,228.92,228.91,4.49399]
[1738111217806,0.03,228.92,228.9,20.0]
[1738111218122,0.03,228.92,228.91,3.22594029]
[1738111218807,1.6544,228.92,228.91,3.22594029]
[1738111219126,31.546984,228.92,228.91,4.029e-05]
[1738111219823,31.546984,228.92,228.79,8.07504652]
[1738111220124,8.07504652,228.86,228.79,8.07504652]
[1738111220701,8.07504652,228.86,228.81,0.063]
[1738111222026,8.07504652,228.88,228.81,0.063]
[1738111222232,8.07504652,228.88,228.82,20.0]
[1738111224123,8.07504652,228.88,228.81,8.13804652]
[1738111224529,15.84514652,228.92,228.84,0.12549]
[1738111224705,9.72944652,228.92,228.85,8.07504652]
[1738111224909,1.6544,228.92,228.85,8.07504652]
[1738111225524,9.72944652,228.92,228.85,8.07504652]
[1738111225831,9.72944652,228.92,228.84,0.12549]
[1738111226328,9.72944652,228.92,228.84,4.49529]
[1738111229426,9.72944652,228.92,228.83,28.07504652]
[1738111229637,8.07504652,228.9,228.81,8.13804652]
[1738111229817,8.07504652,228.88,228.81,0.063]
[1738111238437,0.03,228.92,228.89,0.12549]
[1738111238624,0.03,228.92,228.89,8.20053652]
[1738111240028,0.03,228.92,228.9,4.3687]
[1738111240741,0.03,228.92,228.88,4.369]
[1738111244228,8.10504652,228.92,228.85,8.07504652]
[1738111246343,8.10504652,228.92,228.85,12.44464652]
[1738111247342,0.03,228.92,228.88,0.12549]
[1738111247537,0.03,228.92,228.89,8.07504652]
[1738111250047,0.03,228.92,228.88,4.369]
[1738111250343,0.03,228.92,228.87,28.07504652]
[1738111250926,0.03,228.92,228.87,32.44424652]
[1738111251652,8.10504652,228.92,228.84,8.07504652]
[1738111252230,8.10504652,228.92,228.85,0.12549]
[1738111252732,8.07504652,228.89,228.81,8.13804652]
[1738111252939,8.07504652,228.89,228.82,4.3702]
[1738111253133,8.07504652,228.89,228.83,0.12549]
[1738111253339,8.07504652,228.88,228.83,0.12549]
[1738111254749,8.07504652,228.88,228.81,0.063]
[1738111255047,1.5482,228.91,228.81,0.063]
[1738111255048,8.07504652,228.86,228.81,0.063]
[1738111257555,8.07504652,228.88,228.81,0.063]
[1738111262163,8.07504652,228.88,228.81,12.50844652]
[1738111262756,1.5482,228.91,228.85,8.20053652]
[1738111262964,0.03,228.92,228.85,8.07504652]
[1738111263267,8.07504652,228.9,228.81,12.50844652]
[1738111263450,8.07504652,228.88,228.81,12.50844652]
[1738111264068,8.07504652,228.88,228.82,0.12549]
[1738111264445,8.07504652,228.9,228.82,4.49559]
[1738111267463,8.10504652,228.92,228.85,0.12549]
[1738111268173,0.03,228.92,228.85,8.20053652]
[1738111268377,8.07504652,228.9,228.84,4.3697]
[1738111268547,8.07504652,228.9,228.81,0.063]
[1738111268548,8.07504652,228.9,228.82,4.37]
[1738111268882,0.03,228.92,228.81,20.063]
[1738111268883,8.07504652,228.88,228.81,20.063]
[1738111269076,8.07504652,228.86,228.81,0.063]
[1738111269448,8.07504652,228.84,228.81,0.063]
[1738111270352,8.07504652,228.86,228.81,0.063]
[1738111271373,8.07504652,228.86,228.81,20.063]
[1738111271677,0.03,228.91,228.84,8.07504652]
[1738111272770,0.03,228.91,228.84,12.44464652]
[1738111273277,0.03,228.91,228.85,20.0]
[1738111274766,0.03,228.91,228.85,24.3695]
[1738111275567,0.03,228.91,228.87,20.0]
[1738111276978,0.03,228.91,228.84,8.07504652]
[1738111278080,0.03,228.91,228.89,20.0]
[1738111279979,0.03,228.91,228.89,24.3688]
[1738111280184,0.03,228.91,228.9,8.20053652]
[1738111281181,0.03,228.91,228.9,12.56923652]
[1738111281410,0.03,228.91,228.9,36.34612052]
[1738111284383,0.0001,228.91,228.9,68.6463066]
[1738111284589,0.0001,228.92,228.91,23.902374]
[1738111284773,0.0001,228.92,228.91,30.050674]
[1738111285972,0.0001,228.92,228.91,10.64229]
[1738111286175,0.0001,228.92,228.91,4.49399]
[1738111291388,0.0001,228.92,228.89,31.18529665]
[1738111291769,0.0001,228.92,228.9,0.12549]
[1738111292183,0.0001,228.92,228.89,31.18529665]
[1738111292976,0.0001,228.92,228.91,20.0]
[1738111293592,0.0001,228.92,228.91,20.12549]
[1738111294775,0.0001,228.92,228.91,24.49399]
[1738111295178,0.0001,228.92,228.89,31.18529665]
[1738111295690,0.0001,228.92,228.9,0.12549]
[1738111297695,0.0001,228.92,228.89,31.18529665]
[1738111302503,0.0001,228.92,228.9,8.20053652]
[1738111305807,0.0001,228.92,228.9,8.07504652]
[1738111305983,0.0001,228.92,228.89,31.18529665]
[1738111308505,0.0001,228.92,228.9,8.07504652]
[1738111311417,0.0001,228.92,228.89,31.18529665]
[1738111316009,0.0001,228.92,228.91,51.1227226]
[1738111316189,0.03,229.01,229.0,8.20053652]
[1738111316398,0.03,229.01,229.0,31.97742052]
[1738111317382,0.03,229.01,229.0,8.20053652]
[1738111317578,0.03,229.01,229.0,0.12549]
[1738111318896,0.03,229.01,229.0,20.12549]
[1738111321008,0.03,229.01,229.0,20.0]
[1738111321213,0.03,229.01,228.98,8.07504652]
[1738111321398,0.03,229.01,228.97,0.12549]
[1738111321592,0.03,229.01,228.98,8.07504652]
[1738111322718,0.03,229.01,229.0,28.20053652]
[1738111322900,0.03,229.01,229.0,51.97742052]
[1738111323300,0.03,229.01,229.0,59.54122052]
[1738111323511,8.07504652,229.16,229.07,8.07504652]
[1738111323908,8.07504652,229.16,229.08,0.12549]
[1738111324595,8.07504652,229.16,229.09,8.07504652]
[1738111325000,8.07504652,229.18,229.09,8.07504652]
[1738111325698,8.07504652,229.16,229.09,8.07504652]
[1738111325900,8.07504652,229.16,229.07,8.07504652]
[1738111327606,8.07504652,229.16,229.08,0.12549]
[1738111329617,8.07504652,229.16,229.1,0.12549]
[1738111330623,8.07504652,229.18,229.1,0.12549]
[1738111334326,8.07504652,229.18,229.1,8.20053652]
[1738111335220,8.07504652,229.18,229.1,12.56543652]
[1738111335420,8.07504652,229.2,229.13,8.07504652]
[1738111335628,8.07504652,229.22,229.14,8.07504652]
[1738111337630,8.07504652,229.2,229.13,0.12549]
[1738111338435,8.07504652,229.2,229.12,8.07504652]
[1738111338741,8.07504652,229.18,229.1,12.43984652]
[1738111339839,8.07504652,229.18,229.11,0.12549]
[1738111340441,8.07504652,229.16,229.08,8.07504652]
[1738111340918,8.07504652,229.16,229.09,0.12549]
[1738111341118,8.07504652,229.14,229.09,20.12549]
[1738111342438,8.07504652,229.16,229.08,28.07504652]
[1738111346545,8.07504652,229.2,229.13,8.07504652]
[1738111348326,8.07504652,229.2,229.11,8.20053652]
[1738111350644,8.07504652,229.22,229.13,8.07504652]
[1738111352635,8.07504652,229.22,229.14,0.12549]
[1738111356248,8.07504652,229.2,229.14,0.12549]
[1738111356632,8.07504652,229.18,229.12,20.0]
[1738111358045,8.07504652,229.2,229.11,12.43964652]
[1738111358532,8.07504652,229.2,229.12,0.12549]
[1738111362153,8.07504652,229.22,229.12,0.12549]
[1738111365934,8.07504652,229.2,229.12,0.12549]
[1738111366552,8.07504652,229.16,229.07,8.07504652]
[1738111367128,8.07504652,229.16,229.07,12.44034652]
[1738111367862,8.07504652,229.16,229.08,0.12549]
[1738111368450,8.07504652,229.16,229.09,8.07504652]
[1738111370360,1.6614,229.15,229.09,8.07504652]
[1738111370562,1.6614,229.15,229.07,28.20053652]
[1738111371131,8.07504652,229.12,229.03,8.07504652]
[1738111371450,8.07504652,229.12,229.04,0.12549]
[1738111372037,1.6614,229.15,229.01,8.13804652]
[1738111372038,8.07504652,229.1,229.01,8.13804652]
[1738111372234,8.07504652,229.1,229.03,28.07504652]
[1738111372434,8.07504652,229.14,229.06,0.12549]
[1738111372633,8.07504652,229.14,229.05,8.07504652]
[1738111374040,1.6614,229.15,229.07,8.07504652]
[1738111374256,0.03,229.15,229.12,8.07504652]
[1738111375057,0.03,229.15,229.12,12.43944652]
[1738111375263,0.03,229.15,229.1,32.43974652]
[1738111375963,0.03,229.15,229.08,8.07504652]
[1738111377770,0.03,229.15,229.06,32.44054652]
[1738111378567,8.07504652,229.14,229.06,32.44054652]
[1738111379565,8.07504652,229.14,229.06,28.07504652]
[1738111382761,8.07504652,229.14,229.06,32.44064652]
[1738111382966,0.03,229.15,229.06,32.44064652]
[1738111383166,0.03,229.15,229.09,0.12549]
[1738111383468,0.03,229.15,229.1,8.07504652]
[1738111385183,0.03,229.15,229.1,12.43984652]
[1738111385482,0.03,229.15,229.1,8.07504652]
[1738111385665,0.03,229.15,229.08,8.07504652]
[1738111387190,0.03,229.15,229.08,12.44014652]
[1738111387690,0.03,229.15,229.08,8.07504652]
[1738111388289,0.03,229.15,229.08,12.44024652]
[1738111391788,0.03,229.15,229.08,8.07504652]
[1738111391975,0.03,229.15,229.06,4.4284]
[1738111391976,0.03,229.15,229.06,12.50344652]
[1738111393089,8.07504652,229.1,229.06,0.063]
[1738111393289,8.07504652,229.08,229.06,0.063]
[1738111395590,1.5167,229.07,229.06,0.063]
[1738111395896,25.293584,229.07,229.06,0.063]
[1738111404413,1.5167,229.07,229.06,0.063]
[1738111406914,8.07504652,229.08,229.06,0.063]
[1738111412596,8.07504652,229.12,229.06,0.063]
[1738111413501,8.07504652,229.1,229.06,0.063]
[1738111415623,8.10504652,229.12,229.06,0.063]
[1738111417413,0.03,229.12,229.08,20.0]
[1738111417613,0.03,229.12,229.11,0.12549]
[1738111419295,0.03,229.12,229.1,8.07504652]
[1738111419602,0.03,229.12,229.11,20.0]
[1738111419807,0.03,229.12,229.09,7.8067]
[1738111420207,0.03,229.12,229.08,20.0]
[1738111420712,0.03,229.12,229.06,0.063]
[1738111423523,0.03,229.12,229.06,8.13804652]
[1738111427125,0.03,229.12,229.06,0.063]
[1738111428617,8.10504652,229.12,229.06,0.063]
[1738111428818,8.07504652,229.11,229.06,0.063]
[1738111429620,8.10504652,229.12,229.07,20.0]
[1738111429821,0.03,229.12,229.06,0.063]
[1738111430425,0.03,229.12,229.08,8.07504652]
[1738111431118,0.03,229.12,229.1,8.07504652]
[1738111431416,0.03,229.12,229.11,8.07504652]
[1738111431911,0.03,229.12,229.11,8.20053652]
[1738111433202,0.03,229.12,229.11,36.34212052]
[1738111436028,0.03,229.15,229.14,20.12549]
[1738111436318,8.07504652,229.3,229.19,0.12549]
[1738111436504,8.07504652,229.3,229.22,8.07504652]
[1738111437312,8.07504652,229.28,229.2,8.07504652]
[1738111439424,8.07504652,229.26,229.18,28.07504652]
[1738111439724,8.07504652,229.24,229.16,8.07504652]
[1738111440226,8.07504652,229.26,229.18,8.07504652]
[1738111440434,9.64304652,229.28,229.2,8.07504652]
[1738111441020,9.64304652,229.28,229.18,8.07504652]
[1738111441634,8.07504652,229.26,229.18,8.07504652]
[1738111441933,8.07504652,229.24,229.16,8.07504652]
[1738111442436,8.07504652,229.24,229.16,28.07504652]
[1738111447536,8.07504652,229.24,229.16,32.43864652]
[1738111450447,8.07504652,229.24,229.16,28.07504652]
[1738111450944,8.07504652,229.26,229.18,8.07504652]
[1738111451247,9.64304652,229.28,229.2,8.07504652]
[1738111453749,8.07504652,229.28,229.2,8.07504652]
[1738111453944,8.07504652,229.26,229.18,8.07504652]
[1738111454151,8.07504652,229.26,229.16,8.07504652]
[1738111454448,8.07504652,229.24,229.16,8.07504652]
[1738111456028,8.07504652,229.24,229.14,28.20053652]
[1738111458732,9.63374652,229.26,229.18,8.07504652]
[1738111459061,0.33,229.29,229.2,8.07504652]
[1738111459856,8.07504652,229.28,229.18,8.07504652]
[1738111461334,8.07504652,229.28,229.19,8.07504652]
[1738111461535,8.07504652,229.26,229.17,28.07504652]
[1738111462756,8.10504652,229.26,229.17,28.07504652]
[1738111464764,8.07504652,229.24,229.15,8.07504652]
[1738111465568,8.10504652,229.26,229.15,8.07504652]
[1738111467168,8.10504652,229.26,229.14,0.12549]
[1738111467169,0.03,229.26,229.14,4.48949]
[1738111467366,0.03,229.26,229.19,8.07504652]
[1738111470375,0.03,229.26,229.19,12.43814652]
[1738111472374,0.03,229.26,229.13,32.36318608]
[1738111472375,8.10504652,229.26,229.17,8.07504652]
[1738111473976,8.10504652,229.26,229.13,4.4271]
[1738111474186,8.07504652,229.24,229.15,8.07504652]
[1738111475179,8.07504652,229.24,229.15,8.13804652]
[1738111481185,8.07504652,229.22,229.15,0.063]
[1738111481790,8.07504652,229.22,229.16,20.0]
[1738111482087,1.6203,229.23,229.15,8.13804652]
[1738111484491,1.6203,229.23,229.15,0.063]
[1738111484492,8.07504652,229.22,229.15,0.063]
[1738111486381,9.69534652,229.23,229.15,0.063]
[1738111489588,1.77628312,229.26,229.16,8.07504652]
[1738111489589,8.07504652,229.25,229.16,8.07504652]
[1738111489791,0.03,229.26,229.18,8.07504652]
[1738111490089,0.03,229.26,229.2,8.07504652]
[1738111490492,0.03,229.26,229.24,20.0]
[1738111490697,0.03,229.26,229.25,8.07504652]
[1738111491002,0.03,229.26,229.25,31.97742052]
[1738111491681,0.03,229.26,229.25,36.33942052]
[1738111492192,0.03,229.26,229.25,12.56253652]
[1738111493505,0.03,229.26,229.25,8.20053652]
[1738111494598,0.03,229.26,229.25,31.97742052]
[1738111497203,0.03,229.26,229.25,23.902374]
[1738111498182,0.33,229.29,229.28,20.0]
[1738111498383,0.33,229.29,229.28,28.07504652]
[1738111498584,0.33,229.29,229.28,51.97742052]
[1738111499801,0.33,229.29,229.28,56.33882052]
[1738111503491,0.03,229.35,229.33,0.12549]
[1738111503690,0.03,229.35,229.34,28.20053652]
[1738111504603,0.03,229.35,229.34,56.33772052]
[1738111505093,0.03,229.35,229.34,28.20053652]
[1738111505494,0.03,229.35,229.34,8.07504652]
[1738111505697,0.03,229.35,229.29,8.07504652]
[1738111506094,0.03,229.35,229.31,8.07504652]
[1738111507618,0.03,229.35,229.29,28.07504652]
[1738111509413,8.07504652,229.34,229.27,8.07504652]
[1738111509600,8.07504652,229.34,229.25,8.07504652]
[1738111510818,8.07504652,229.34,229.26,0.063]
[1738111511318,8.07504652,229.34,229.27,8.07504652]
[1738111511713,0.03,229.35,229.27,8.07504652]
[1738111512995,0.03,229.35,229.3,20.0]
[1738111513216,0.03,229.35,229.3,28.07504652]
[1738111518126,0.03,229.35,229.28,8.07504652]
[1738111518419,8.07504652,229.34,229.26,8.13804652]
[1738111518810,8.07504652,229.32,229.26,0.063]
[1738111520016,8.07504652,229.28,229.26,0.063]
[1738111520217,23.776884,229.27,229.26,0.063]
[1738111521324,23.776884,229.27,229.26,0.0001]
[1738111525724,23.902374,229.27,229.26,0.0001]
[1738111526439,20.0,229.24,229.15,0.063]
[1738111526633,23.776884,229.19,229.15,0.063]
[1738111527011,8.07504652,229.22,229.15,0.063]
[1738111529427,23.776884,229.21,229.15,0.063]
[1738111530918,8.07504652,229.2,229.15,0.063]
[1738111531119,8.07504652,229.16,229.15,0.063]
[1738111531419,31.85193052,229.16,229.15,0.063]
[1738111531613,0.12549,229.14,229.03,0.063]
[1738111531818,8.07504652,229.07,229.03,0.063]
[1738111532335,31.85193052,229.07,229.03,0.063]
[1738111532737,36.37958363,229.07,229.03,0.063]
[1738111532959,36.82106087,229.07,229.03,0.063]
[1738111533142,38.58305087,229.07,229.06,0.0001]
[1738111533350,43.776884,229.04,229.03,0.063]
[1738111533659,56.50507363,229.04,229.03,0.063]
[1738111533825,56.50507363,229.04,229.03,0.0001]
[1738111534440,56.37958363,229.04,229.03,0.0001]
[1738111534918,36.37958363,229.04,229.03,0.0001]
[1738111536937,36.37958363,229.04,229.02,0.0431]
[1738111539954,23.776884,229.03,229.02,0.0431]
[1738111540337,20.0,229.03,229.02,0.0431]
[1738111541052,12.60269963,229.04,229.02,0.0431]
[1738111543955,20.0,229.02,229.01,0.0199]
[1738111544265,32.60269963,229.02,228.92,0.063]
[1738111544466,12.60269963,228.95,228.92,0.063]
[1738111548063,20.0,228.93,228.92,0.063]